Cogmind - Beta 10.2 @@@ ROGUE MODE // 2021.05.18 @ 18:00:31 Player: Trantor Result: Destroyed by G-47 Trooper with Particle Gun Performance ------------- Evolutions (3) 1500 Regions Visited (11) 2200 Robots Destroyed (131) 655 Value Destroyed (4889) 4889 Prototype IDs (29) 580 Alien Tech Used (0) 0 Bonus (1717) 1717 TOTAL SCORE: 11541 Bonus ------- High Alert Combat Kills 72 Follower Combat Kills 68 Entered Garrisons 400 Used RIF Installer 1000 Aligned with FarCom 300 Friendly Fire -123 Cogmind --------- Core Integrity 0/700 Matter 265/300 Energy 100/100 System Corruption 0% Temperature Cool (9) Movement Core (1200) Ox23 Location -7/Factory Parts ------- > --- POWER (1) -------- (None) > --- PROPULSION (3) --- (None) > --- UTILITY (6) ------ Large Storage Unit Large Storage Unit Large Storage Unit Large Storage Unit Relay Coupler [Swarmer] (25) > --- WEAPON (3) ------- Missile Launcher > --- INVENTORY (28) --- Light Treads Light Treads Gravmag System Transmission Jammer Improved Utility Shielding Relay Coupler [NC] (29) Relay Coupler [NC] (21) Relay Coupler [NC] (27) Relay Coupler [NC] (25) Relay Coupler [Grunt] (26) Relay Coupler [Grunt] (21) Relay Coupler [Grunt] (31) Relay Coupler [Sentry] Relay Coupler [Sentry] Relay Coupler [Sentry] Relay Coupler [Sentry] Relay Coupler [Hunter] (18) Relay Coupler [Hunter] (13) Relay Coupler [Hunter] (13) System Backup Module Heavy EM Pulse Gun Heavy Laser Slug Cannon EMP Blaster Improved Datajack Field Lobotomy Kit Peak State ------------ > --- POWER ------------ Heavy Ion Engine > --- PROPULSION ------- Improved Treads Advanced Treads Advanced Treads > --- UTILITY ---------- Large Storage Unit Large Storage Unit Large Storage Unit Hacking Suite Hacking Suite > --- WEAPON ----------- Improved Assault Rifle Slug Cannon > --- INVENTORY -------- Reinforced Ion Engine Improved Treads Advanced Treads Large Storage Unit Transmission Jammer Improved Utility Shielding Light Armor Plating System Shield Relay Coupler [NC] Relay Coupler [NC] Relay Coupler [Grunt] Heavy EM Pulse Gun Heavy Assault Rifle Heavy Assault Rifle Heavy Assault Rifle Heavy Assault Rifle EMP Blaster Missile Launcher Missile Launcher Improved Datajack Field Lobotomy Kit Katana [Rating: 32] Favorites ----------- Power Heavy Ion Engine Engine Heavy Ion Engine Propulsion Improved Treads Treads Improved Treads Leg Aluminum Leg Utility Large Storage Unit Device Advanced Sensor Array Storage Large Storage Unit Processor Terrain Scan Processor Hackware Hacking Suite Protection Improved Light Armor Plating Weapon Heavy Assault Rifle Energy Gun EM Shotgun Ballistic Gun Heavy Assault Rifle Ballistic Cannon Flak Cannon Launcher Shock Bomb Launcher Slashing Weapon Katana Special Melee Weapon Improved Datajack Build | -11 -10 -10 -9 -9 -9 -8 -8 -8 -8 -8 -7 ------- Run | Scr Mat Min Mat Min Exi Min Mat Gar Mat Gar Fac Slots Evolved 6 | . . . 2 . . . 2 . . . 2 Power . | . . . . . . . . . . . . Propulsion 1 | . . . 1 . . . . . . . . Utility 4 | . . . 1 . . . 2 . . . 1 Weapon 1 | . . . . . . . . . . . 1 Parts Attached 119 | . 8 2 33 2 . . 32 7 8 14 13 Power 12 | . 1 . 5 . . . 3 1 1 1 . Engine 12 | . 1 . 5 . . . 3 1 1 1 . Core . | . . . . . . . . . . . . Reactor . | . . . . . . . . . . . . Propulsion 34 | . 2 . 12 . . . 10 . . 5 5 Treads 34 | . 2 . 12 . . . 10 . . 5 5 Leg . | . . . . . . . . . . . . Wheel . | . . . . . . . . . . . . Hover . | . . . . . . . . . . . . Flight . | . . . . . . . . . . . . Utility 20 | . 3 . 3 1 . . 5 1 4 1 2 Device 2 | . 1 . . 1 . . . . . . . Storage 9 | . 2 . 2 . . . . . 4 1 . Processor 1 | . . . . . . . 1 . . . . Hackware 4 | . . . 1 . . . 2 . . . 1 Protection 4 | . . . . . . . 2 1 . . 1 Artifact . | . . . . . . . . . . . . Weapon 53 | . 2 2 13 1 . . 14 5 3 7 6 Energy Gun 1 | . . . . . . . 1 . . . . Energy Cannon . | . . . . . . . . . . . . Ballistic Gun 33 | . 2 2 12 . . . 8 1 2 3 3 Ballistic Cannon 4 | . . . 1 . . . 1 2 . . . Launcher 5 | . . . . 1 . . . . . 2 2 Special Weapon . | . . . . . . . . . . . . Impact Weapon . | . . . . . . . . . . . . Slashing Weapon 8 | . . . . . . . 4 1 1 2 . Piercing Weapon . | . . . . . . . . . . . . Special Melee Weapon 2 | . . . . . . . . 1 . . 1 Unidentified Prototypes 3 | . . . 2 . . . 1 . . . . Parts Lost 22 | . . . 4 . . . 3 1 . . 14 Power 1 | . . . . . . . . . . . 1 Propulsion 12 | . . . 4 . . . 2 . . . 6 Utility 4 | . . . . . . . 1 1 . . 2 Weapon 5 | . . . . . . . . . . . 5 Highest Loss Streak 8 | . . . 1 . . . 1 1 . . 8 Average Slot Usage (%) 97 | . 97 100 94 99 100 100 99 99 99 100 77 Engine 9 | . 14 14 10 11 11 11 8 9 9 9 2 Treads 27 | . 26 28 29 33 33 33 26 27 27 27 17 Device 3 | . 6 . . 10 11 11 4 . . . . Storage 23 | . 19 28 22 22 22 22 18 18 25 30 30 Hackware 9 | . . . 9 . . . 12 18 18 14 6 Protection 2 | . . . . . . . 8 9 1 . 2 Ballistic Gun 14 | . 28 28 18 20 11 11 8 8 9 11 11 Ballistic Cannon 3 | . . . 3 . . . 7 8 8 . . Launcher 1 | . . . . 1 11 11 . . . 1 . Slashing Weapon 1 | . . . . . . . 1 . . 5 2 Naked Turns . | . . . . . . . . . . . . Heaviest Build 82 | 12 43 43 49 50 50 50 53 54 68 79 82 Greatest Support 69 | 20 40 40 69 69 69 69 69 67 67 67 66 Greatest Overweight (x) 26 | . 1 1 1 . . . . . 1 1 26 Average Overweight (x) . | . . . . . . . . . . . 1 Largest Inventory Capacity 28 | 6 16 16 16 16 16 16 16 16 22 28 28 Average Capacity 18 | 6 10 16 16 16 16 16 16 16 21 24 28 Most Carried 28 | 6 12 16 16 16 16 16 16 16 22 28 27 Average Carried 17 | 6 8 14 15 15 15 16 15 15 20 23 25 Final Capacity 28 | 6 16 16 16 16 16 16 16 16 22 28 28 Final Carried 28 | 6 12 16 16 16 16 16 16 16 22 28 26 Class Distribution -------------------- 37% | Mutant 17% | Hacker-Mutant 12% | Hauler-Mutant 12% | Bothacker-Mutant 8% | Skirmisher 6% | Scavenger-Mutant Dominant Class ---------------- Mutant | -10/Materials Mutant | -10/Mines Mutant | -9/Materials Mutant | -9/Mines Mutant | -9/Exiles Mutant | -8/Mines Hacker-Mutant | -8/Materials Hacker-Mutant | -8/Garrison Hauler-Mutant | -8/Materials Bothacker-Mutant | -8/Garrison Bothacker-Mutant | -7/Factory Resources | -11 -10 -10 -9 -9 -9 -8 -8 -8 -8 -8 -7 ----------- Run | Scr Mat Min Mat Min Exi Min Mat Gar Mat Gar Fac Matter Collected 4001 | 200 126 124 946 90 . . 1110 392 217 434 362 Remotely . | . . . . . . . . . . . . Salvage Created 4753 | . 157 296 1132 43 . . 1359 318 180 507 761 Parts 277 | . 16 8 86 5 . . 74 9 13 36 30 Haulers Intercepted 11 | . . . 4 . . . 5 . 1 . 1 Recyclers Shooed . | . . . . . . . . . . . . Parts Field Recycled . | . . . . . . . . . . . . Retrieved Matter . | . . . . . . . . . . . . Parts Self-Destructed . | . . . . . . . . . . . . Prevented . | . . . . . . . . . . . . Kills | -11 -10 -10 -9 -9 -9 -8 -8 -8 -8 -8 -7 ------- Run | Scr Mat Min Mat Min Exi Min Mat Gar Mat Gar Fac Combat Hostiles Destroyed 101 | . 3 3 28 3 . . 21 8 5 17 13 Melee 9 | . . . . . . . 2 . . 4 3 Guns 58 | . 3 3 25 3 . . 9 . 3 5 7 Cannons 23 | . . . 3 . . . 10 8 2 . . AOE 11 | . . . . . . . . . . 8 3 Classes Destroyed 14 | . 3 2 4 . . . 1 1 . . 3 Worker 1 | . . . 1 . . . . . . . . Hauler 11 | . . . 4 . . . 5 . 1 . 1 Recycler 6 | . . 1 . . . . 2 . . . 3 Mechanic 1 | . . . . . . . . . . . 1 Operator 3 | . 1 . . . . . 2 . . . . Watcher 7 | . 1 . 3 . . . 3 . . . . Swarmer 28 | . . 3 8 3 . . . . 2 8 4 Grunt 42 | . 3 . 11 . . . 13 2 . 8 5 Brawler 1 | . . . . . . . . 1 . . . Duelist 5 | . . . 2 . . . 1 2 . . . Sentry 17 | . . . 7 . . . 4 1 3 1 1 Demolisher 1 | . . . . . . . . . . . 1 Hunter 7 | . . . . . . . 3 3 . . 1 Programmer 1 | . . . . . . . . . . . 1 Best Kill Streak 6 | . 4 2 5 3 . . 6 3 2 4 6 Combat Bots Only 4 | . 3 2 4 3 . . 4 3 2 4 3 Max Kills in Single Turn 4 | . 1 1 2 2 . . 1 1 1 4 2 Gunslinging 1 | . . . . 1 . . . . . 1 . Exploded 4 | . . . . . . . . . . 4 1 Melee 1 | . . . . . . . 1 . . 1 1 Uniques/NPCs Destroyed . | . . . . . . . . . . . . Combat | -11 -10 -10 -9 -9 -9 -8 -8 -8 -8 -8 -7 -------- Run | Scr Mat Min Mat Min Exi Min Mat Gar Mat Gar Fac Damage Taken 7137 | . 292 165 1367 53 . . 1142 497 242 589 2790 Core 1386 | . 104 28 235 . . . 112 112 53 36 706 Absorbed by Shields . | . . . . . . . . . . . . Core Remaining (%) 57 | 100 . 47 . . . 41 . . . 43 . Volleys Fired 352 | . 9 16 101 7 . . 94 29 29 24 43 Largest 3 | . 2 2 2 2 . . 2 2 2 2 3 Hottest 71 | . 46 46 67 46 . . 67 68 71 46 66 Shots Fired 682 | . 18 32 201 15 1 . 179 58 58 41 79 Gun 525 | . 18 32 177 13 1 . 115 29 35 34 71 Cannon 140 | . . . 24 . . . 64 29 23 . . Launcher 17 | . . . . 2 . . . . . 7 8 Special . | . . . . . . . . . . . . Kinetic 665 | . 18 32 201 13 1 . 179 58 58 34 71 Thermal . | . . . . . . . . . . . . Explosive 13 | . . . . . . . . . . 7 6 Electromagnetic 4 | . . . . 2 . . . . . . 2 Robot Hit Streak 20 | . 4 7 19 4 . . 20 14 6 7 11 Robot Miss Streak 6 | . 4 5 6 2 . . 5 4 4 1 5 Penetration Max . | . . . . . . . . . . . . Secondary Targets 4 | . . . 1 1 . . . . . 1 1 Max Gunslinging Chain 1 | . . . 1 1 . . . . . 1 1 Shots Hit Robots 537 | . 9 14 138 7 . . 157 67 31 38 76 Core Hits 275 | . 7 8 61 3 . . 95 35 9 24 33 Critical Hits 6 | . 1 . . . . . 4 . . 1 . Critical Kills 3 | . 1 . . . . . 1 . . 1 . Critical Parts Destroyed 3 | . . . . . . . 3 . . . . Melee Attacks 87 | . . . . . . . 23 16 1 15 32 Impact . | . . . . . . . . . . . . Slashing 64 | . . . . . . . 23 1 1 15 24 Piercing . | . . . . . . . . . . . . Sneak Attacks 17 | . . . . . . . . 15 . 2 . Combat Hostiles 10 | . . . . . . . . 8 . 2 . Follow-up Attacks . | . . . . . . . . . . . . Damage Inflicted 9697 | . 115 191 2197 106 . . 2398 881 540 1508 1761 Guns 5187 | . 115 191 1811 106 . . 1302 333 315 380 634 Cannons 2033 | . . . 386 . . . 874 548 225 . . Explosions 1356 | . . . . . . . . . . 701 655 Melee 1115 | . . . . . . . 216 . . 427 472 Ramming 6 | . . . . . . . 6 . . . . Kinetic 7220 | . 115 191 2197 106 . . 2176 881 540 380 634 Thermal 72 | . . . . . . . . . . . 72 Explosive 1225 | . . . . . . . . . . 701 524 Electromagnetic 59 | . . . . . . . . . . . 59 Impact . | . . . . . . . . . . . . Slashing 1115 | . . . . . . . 216 . . 427 472 Piercing . | . . . . . . . . . . . . Highest Corruption 8 | . . . 8 8 8 8 . . . . . Average Corruption 7 | . . . 7 8 8 8 . . . . . Corruption Purged . | . . . . . . . . . . . . Effects 100 | . . . 23 40 18 19 . . . . . Message Errors 29 | . . . 9 12 4 4 . . . . . Matter Fused 15 | . . . 7 5 2 1 . . . . . Heat Flow Errors 12 | . . . 1 5 3 3 . . . . . Energy Discharges 14 | . . . 1 7 1 5 . . . . . Data Loss (minor) 16 | . . . 2 4 4 6 . . . . . Data Loss (major) 4 | . . . . 2 2 . . . . . . Misfires 3 | . . . . 2 1 . . . . . . Targeting Errors 6 | . . . 2 3 1 . . . . . . Weapon Failures 1 | . . . 1 . . . . . . . . Overload Shots . | . . . . . . . . . . . . Overflow Damage 325 | . . . . . . . . . . 196 129 Projectiles . | . . . . . . . . . . . . Explosions 187 | . . . . . . . . . . 122 65 Melee 138 | . . . . . . . . . . 74 64 Knockbacks 33 | . . . 2 . . . 24 7 . . . Impact . | . . . . . . . . . . . . Kinetic 32 | . . . 2 . . . 23 7 . . . Secondary 1 | . . . . . . . 1 . . . . Self-Inflicted Damage 328 | . 173 . . . . . . . . 15 140 Shots 5 | . 2 . . . . . . . . 1 2 Rammed 2 | . . . . . . . 2 . . . . Targets Rammed 2 | . . . . . . . 2 . . . . Kicked . | . . . . . . . . . . . . Crushed . | . . . . . . . . . . . . Highest Temperature 263 | . 19 . 229 173 239 263 54 43 30 . 3 Average Temperature 48 | . 4 . 41 77 104 132 17 15 12 . 3 Received Heat Transfer 1941 | . 36 . 396 . . . 405 63 72 279 690 Siege Activations . | . . . . . . . . . . . . Robots Corrupted . | . . . . . . . . . . . . Combat Hostiles . | . . . . . . . . . . . . Parts Fried . | . . . . . . . . . . . . Impact Corruptions . | . . . . . . . . . . . . Robots Melted . | . . . . . . . . . . . . Combat Hostiles . | . . . . . . . . . . . . Parts Melted . | . . . . . . . . . . . . Heat Transferred 100 | . . . . . . . . . . . 100 Parts Sabotaged . | . . . . . . . . . . . . Parts Stolen . | . . . . . . . . . . . . Parts Stripped . | . . . . . . . . . . . . Power Chain Reactions 1 | . . . . . . . . . . . 1 Missiles Intercepted . | . . . . . . . . . . . . Alert | -11 -10 -10 -9 -9 -9 -8 -8 -8 -8 -8 -7 ------- Run | Scr Mat Min Mat Min Exi Min Mat Gar Mat Gar Fac Peak Influence 669 | . 98 131 311 169 . . 214 431 219 669 436 Initial 350 | . . 11 . 84 . . . 63 209 13 350 Average 134 | . 21 38 126 56 . . 80 248 104 327 297 Maximum Alert Level 2 | . . . 1 . . . 1 2 1 2 2 Low Security (%) 73 | 100 100 100 80 100 . 100 98 35 67 19 9 Level 1 21 | . . . 19 . . . 1 55 32 43 85 Level 2 5 | . . . . . . . . 8 . 36 4 Level 3 . | . . . . . . . . . . . . Level 4 . | . . . . . . . . . . . . Level 5 . | . . . . . . . . . . . . High Security . | . . . . . . . . . . . . Max Security . | . . . . . . . . . . . . Squads Dispatched 14 | . 2 . 3 . . . 4 . . . 5 Investigation 3 | . . . 1 . . . 2 . . . . Extermination 1 | . . . . . . . . . . . 1 Reinforcement 8 | . 2 . 2 . . . 2 . . . 2 Assault 1 | . . . . . . . . . . . 1 Garrison 1 | . . . . . . . . . . . 1 Intercept . | . . . . . . . . . . . . Construction Impeded 1 | . . . . . . . . . . . 1 Haulers Reinforced . | . . . . . . . . . . . . Stealth | -11 -10 -10 -9 -9 -9 -8 -8 -8 -8 -8 -7 --------- Run | Scr Mat Min Mat Min Exi Min Mat Gar Mat Gar Fac Distress Signals 13 | . . . 3 . . . 6 . 2 . 2 Communications Jammed . | . . . . . . . . . . . . Distress Signals . | . . . . . . . . . . . . Times Spotted 169 | . 9 4 44 1 . . 44 9 12 23 23 Peak Tracking Total 5 | . 2 3 5 1 . . 5 3 3 4 5 Tactical Retreats 11 | . . 1 1 . . . 1 . 1 5 2 Traps | -11 -10 -10 -9 -9 -9 -8 -8 -8 -8 -8 -7 ------- Run | Scr Mat Min Mat Min Exi Min Mat Gar Mat Gar Fac Traps Triggered 12 | . 2 1 4 . . . 1 . . 3 1 Indirectly . | . . . . . . . . . . . . Trap Hack Attempts . | . . . . . . . . . . . . Triggered . | . . . . . . . . . . . . Disarmed . | . . . . . . . . . . . . Reprogrammed . | . . . . . . . . . . . . Reused . | . . . . . . . . . . . . Traps Extracted . | . . . . . . . . . . . . Installed . | . . . . . . . . . . . . Triggered . | . . . . . . . . . . . . Machines | -11 -10 -10 -9 -9 -9 -8 -8 -8 -8 -8 -7 ---------- Run | Scr Mat Min Mat Min Exi Min Mat Gar Mat Gar Fac Machines Disabled 11 | . 2 . 2 . . . . 1 1 3 2 Max in Single Turn 2 | . 2 . 1 . . . . 1 1 1 1 Garrison Access 1 | . . . . . . . . . . . 1 Garrison Relay 4 | . . . . . . . . 1 . 3 . Machines Sabotaged . | . . . . . . . . . . . . Garrisons Compromised . | . . . . . . . . . . . . Overloaded Fab Kills . | . . . . . . . . . . . . Fab Network Shutdowns . | . . . . . . . . . . . . Hacking | -11 -10 -10 -9 -9 -9 -8 -8 -8 -8 -8 -7 --------- Run | Scr Mat Min Mat Min Exi Min Mat Gar Mat Gar Fac Machines Accessed 33 | . 2 1 9 . 5 . 10 . 4 . 2 Terminals 23 | . 2 . 9 . . . 7 . 3 . 2 Fabricators . | . . . . . . . . . . . . Repair Stations . | . . . . . . . . . . . . Recycling Units . | . . . . . . . . . . . . Scanalyzers 2 | . . . . . . . 2 . . . . Garrison Access 2 | . . . . . . . 1 . 1 . . Total Hacks 150 | . 4 1 26 . 50 . 41 . 24 . 4 Successful 116 | . 4 1 9 . 50 . 34 . 17 . 1 Failed 33 | . . . 16 . . . 7 . 7 . 3 Catastrophic 4 | . . . . . . . 2 . 2 . . Database Lockouts 1 | . . . 1 . . . . . . . . Manual 75 | . 4 . 28 . 1 . 20 . 18 . 4 Terminals 86 | . 4 . 26 . . . 30 . 22 . 4 Fabricators . | . . . . . . . . . . . . Repair Stations . | . . . . . . . . . . . . Recycling Units . | . . . . . . . . . . . . Scanalyzers 7 | . . . . . . . 7 . . . . Garrison Access 6 | . . . . . . . 4 . 2 . . Terminal Hacks 77 | . . 1 4 . 50 . 16 . 6 . . Record 57 | . . . . . 49 . 6 . 2 . . Robot Analysis 1 | . . . 1 . . . . . . . . Prototype ID Bank 2 | . . . . . . . 1 . 1 . . Open Door 1 | . . 1 . . . . . . . . . Level Access Points 1 | . . . . . . . 1 . . . . Branch Access Points 1 | . . . . . . . 1 . . . . Terminal Index 1 | . . . . . . . . . 1 . . Scanalyzer Index 1 | . . . . . . . . . 1 . . Garrison Index 1 | . . . . . . . 1 . . . . Alert Level 1 | . . . . . . . 1 . . . . Unreport Threat 5 | . . . 3 . . . 2 . . . . Locate Traps 1 | . . . . . . . 1 . . . . Hauler Manifests 1 | . . . . . . . 1 . . . . Registered Components 1 | . . . . . . . . . 1 . . Zone Layout 1 | . . . . . . . 1 . . . . EX-Prototype ID Bank 1 | . . . . . 1 . . . . . . Fabricator Hacks . | . . . . . . . . . . . . Repair Station Hacks . | . . . . . . . . . . . . Recycling Unit Hacks . | . . . . . . . . . . . . Scanalyzer 6 | . . . . . . . 6 . . . . Insert Component 2 | . . . . . . . 2 . . . . Analyze 4 | . . . . . . . 4 . . . . Garrison Access Hacks 6 | . . . . . . . 4 . 2 . . Unlock Access 4 | . . . . . . . 3 . 1 . . Coupler Status 2 | . . . . . . . 1 . 1 . . Unauthorized Hacks 27 | . 4 . 5 . . . 8 . 9 . 1 Terminals 27 | . 4 . 5 . . . 8 . 9 . 1 Track 4 | . . . . . . . 2 . 2 . . Assimilate 9 | . 2 . 2 . . . 2 . 2 . 1 Botnet 12 | . 2 . 3 . . . 4 . 3 . . Operators 2 | . . . . . . . . . 2 . . Fabricators . | . . . . . . . . . . . . Repair Stations . | . . . . . . . . . . . . Recycling Units . | . . . . . . . . . . . . Scanalyzers . | . . . . . . . . . . . . Garrison Access . | . . . . . . . . . . . . Data Cores Recovered 1 | . 1 . . . . . . . . . . Used . | . . . . . . . . . . . . Hacking Detections 26 | . 2 . 8 . . . 10 . 4 . 2 Full Trace Events 5 | . . . 1 . . . 4 . . . . Feedback Events . | . . . . . . . . . . . . Feedback Blocked . | . . . . . . . . . . . . Robot Schematics Acquired . | . . . . . . . . . . . . Robots Built . | . . . . . . . . . . . . Matter . | . . . . . . . . . . . . Time . | . . . . . . . . . . . . Total Robot Build Rating . | . . . . . . . . . . . . Part Schematics Acquired 1 | . . . . . . . 1 . . . . Parts Built . | . . . . . . . . . . . . Matter . | . . . . . . . . . . . . Time . | . . . . . . . . . . . . Total Part Build Rating . | . . . . . . . . . . . . Parts Repaired . | . . . . . . . . . . . . Time . | . . . . . . . . . . . . Parts Recycled . | . . . . . . . . . . . . Recycled Matter . | . . . . . . . . . . . . Retrieved Matter . | . . . . . . . . . . . . Retrieved Components . | . . . . . . . . . . . . Parts Scanalyzed 2 | . . . . . . . 2 . . . . Part Schematics Acquired 1 | . . . . . . . 1 . . . . Parts Damaged . | . . . . . . . . . . . . Bothacking | -11 -10 -10 -9 -9 -9 -8 -8 -8 -8 -8 -7 ------------ Run | Scr Mat Min Mat Min Exi Min Mat Gar Mat Gar Fac Used RIF Installer 2 | . . . . . . . . 1 . 1 . Patrol Navigation 1 | . . . . . . . . . . 1 . Robots Hacked 2 | . . . . . . . . . . . 2 Non-combat . | . . . . . . . . . . . . Combat 2 | . . . . . . . . . . . 2 Robot Hacks Applied 3 | . . . . . . . . . . . 3 parse_system 2 | . . . . . . . . . . . 2 reboot_system 1 | . . . . . . . . . . . 1 Relay Couplers Released 17 | . . . . . . . . 3 . 13 1 Machine Destruction 17 | . . . . . . . . 3 . 13 1 Attached 1 | . . . . . . . . . . . 1 Robots Rewired 5 | . . . . . . . . 5 . . . Allies Hacked . | . . . . . . . . . . . . Hacks Repelled . | . . . . . . . . . . . . Allies | -11 -10 -10 -9 -9 -9 -8 -8 -8 -8 -8 -7 -------- Run | Scr Mat Min Mat Min Exi Min Mat Gar Mat Gar Fac Total Allies 13 | . . . . 3 . . . 5 1 . 4 Largest Group 3 | . . . . 3 2 2 1 2 1 . 3 Highest-Rated Group 93 | . . . . 40 32 32 16 42 10 . 93 Highest-Rated Ally 31 | . . . . 16 16 16 16 21 10 . 31 Total Orders . | . . . . . . . . . . . . Ally Attacks 51 | . . . . . . . 15 22 . . 14 Total Damage 779 | . . . . . . . 159 409 . . 211 Kills 3 | . . . . . . . 2 1 . . . Allies Corrupted . | . . . . . . . . . . . . Allies Melted . | . . . . . . . . . . . . Intel | -11 -10 -10 -9 -9 -9 -8 -8 -8 -8 -8 -7 ------- Run | Scr Mat Min Mat Min Exi Min Mat Gar Mat Gar Fac Robot Analysis Total 1 | . . . 1 . . . . . . . . Derelict Logs Recovered 3 | . . 2 . 1 . . . . . . . Drone Launches . | . . . . . . . . . . . . Drone Recoveries . | . . . . . . . . . . . . Exploration | -11 -10 -10 -9 -9 -9 -8 -8 -8 -8 -8 -7 ------------- Run | Scr Mat Min Mat Min Exi Min Mat Gar Mat Gar Fac Turns Passed 13544 | 8 577 1035 1929 1191 474 557 3153 792 1243 1509 1076 Spaces Moved 6392 | 7 321 534 931 695 296 344 1285 398 549 651 381 Core 13 | . . . . . . . . . . . 13 Treads 6352 | . 301 534 931 695 296 344 1285 398 549 651 368 Legs 27 | 7 20 . . . . . . . . . . Wheels . | . . . . . . . . . . . . Hover . | . . . . . . . . . . . . Flight . | . . . . . . . . . . . . Fastest Speed 120 | 120 120 160 160 160 160 160 150 150 150 150 165 Average Speed 163 | 120 164 179 164 160 160 160 156 150 156 157 205 Slowest Speed 1350 | 120 180 180 180 160 160 160 160 150 170 175 1350 Overloaded Moves . | . . . . . . . . . . . . Propulsion Burnouts . | . . . . . . . . . . . . Robots Hopped . | . . . . . . . . . . . . Cave-ins Triggered . | . . . . . . . . . . . . Exploration Rate (%) 53 | 2 43 74 66 94 66 53 75 45 37 83 7 Regions Visited 11 Branch Regions 4 Pre-discovered Areas 1 | . . . . . 1 . . . . . . Known Exits Taken 2 | . . . . . . . 1 . 1 . . Unknown Exits Taken 7 | 1 1 1 1 1 1 1 . . . . . Scrap Searched 2 | . . . . 2 . . . . . . . Spaces Dug 17 | . . . . . . . 15 . 1 . 1 Terrain Destroyed 150 | . 33 . . . . . 15 . 16 64 22 Melee 17 | . . . . . . . 15 . 1 . 1 Projectile 15 | . . . . . . . . . 15 . . AOE 118 | . 33 . . . . . . . . 64 21 Terrain Rammed . | . . . . . . . . . . . . Walls Destroyed . | . . . . . . . . . . . . Machines Disabled . | . . . . . . . . . . . . Actions | -11 -10 -10 -9 -9 -9 -8 -8 -8 -8 -8 -7 --------- Run | Scr Mat Min Mat Min Exi Min Mat Gar Mat Gar Fac Total 8740 | 6 356 576 1137 761 297 351 2224 533 875 1071 553 Wait 1605 | . . 21 30 57 . 8 748 65 270 325 81 Move 6381 | 6 320 533 930 694 295 343 1285 396 549 649 381 Hop . | . . . . . . . . . . . . Pick Up 82 | . 10 4 13 1 1 . 13 6 10 21 3 Fast Attach 39 | . 2 2 16 . . . 9 2 4 2 2 Attach 17 | . 1 . 2 1 . . 5 1 . . 7 Detach 2 | . . . . . . . 2 . . . . Swap 63 | . 5 . 15 1 . . 18 4 4 12 4 Drop 97 | . 9 . 30 . 1 . 25 7 8 17 . Fire 352 | . 9 16 101 7 . . 94 29 29 24 43 Melee 87 | . . . . . . . 23 16 1 15 32 Ram . | . . . . . . . . . . . . Kick . | . . . . . . . . . . . . Crush 2 | . . . . . . . 2 . . . . Escape Stasis 8 | . . . . . . . . 2 . 6 . Rewire 5 | . . . . . . . . 5 . . . Trap . | . . . . . . . . . . . . Miscellaneous . | . . . . . . . . . . . . Route ------- -11/Scrapyard -10/Materials -10/Mines (discovered 2 exits: *Mat x2) -9/Materials (discovered 2 exits: *Mat / [*Min]) -9/Mines (discovered 2 exits: *Mat / *Exi) -9/Exiles -8/Mines (discovered 2 exits: *Mat x2) -8/Materials (discovered 5 exits: *Fac x3 / *Sto / Gar) -8/Garrison -8/Materials (discovered 2 exits: *Sto / Gar) -8/Garrison (discovered 3 exits: *Fac x3) -7/Factory History --------- Turn | Location | Event 1 | -11/Scrapyard | Discovered new exit (range 3) 9 | -11/Scrapyard | Entered Materials 290 | -10/Materials | Discovered new exit (range 16) 317 | -10/Materials | Build established: Mutant 586 | -10/Materials | Entered Mines 669 | -10/Mines | Core integrity fell below 50% 742 | -10/Mines | Discovered new exit (range 11) 781 | -10/Mines | Learned 4 Materials zone layouts 869 | -10/Mines | Met a Derelict who couldn't figure out how to use a Trap Extractor 1539 | -10/Mines | Discovered new exit (range 13) 1621 | -10/Mines | Entered Materials 1621 | -9/Materials | Evolved 2 slots: Propulsion x1, Utility x1 1977 | -9/Materials | Discovered new exit (range 5) 2151 | -9/Materials | Build established: Scavenger-Mutant 2966 | -9/Materials | Central database locked down 3159 | -9/Materials | Build established: Mutant 3163 | -9/Materials | Core integrity fell below 50% 3457 | -9/Materials | Discovered new exit (range 11) 3550 | -9/Materials | Entered Mines 3685 | -9/Mines | Assisted by bots powering up and referring to "LRC-V3" 3742 | -9/Mines | A weapon hastily lodged in a ceiling crevice suddenly fell to the ground 4117 | -9/Mines | Discovered new exit (range 12) 4395 | -9/Mines | Deemed a non-threat by the Exiles lab entrance 4397 | -9/Mines | Discovered new exit (range 5) 4741 | -9/Mines | Entered Exiles 4741 | -9/Exiles | Accompanied by 2 allies 4780 | -9/Exiles | Met 8R-AWN 4807 | -9/Exiles | Met EX-HEX 4850 | -9/Exiles | Met EX-BIN 4871 | -9/Exiles | Met EX-DEC 4877 | -9/Exiles | Learned location of Zion (-6) 4935 | -9/Exiles | Aligned with FarCom system 4937 | -9/Exiles | Given EX-Vault access code 5005 | -9/Exiles | Opened EX-Vault 5022 | -9/Exiles | Found Field Lobotomy Kit 5060 | -9/Exiles | Warned to stay clear of 0b10 Research branches 5196 | -9/Exiles | Discovered new exit (range 14) 5215 | -9/Exiles | Left Exiles lab with Field Lobotomy Kit 5215 | -9/Exiles | Entered Mines 5215 | -8/Mines | Accompanied by 2 allies 5311 | -8/Mines | Discovered new exit (range 9) 5404 | -8/Mines | Discovered new exit (range 9) 5772 | -8/Mines | Entered Materials 5772 | -8/Materials | Accompanied by 1 ally 5772 | -8/Materials | Evolved 2 slots: Utility x2 6304 | -8/Materials | Build established: Skirmisher 7853 | -8/Materials | Build established: Hacker-Mutant 8020 | -8/Materials | Identified exit to Storage 8058 | -8/Materials | Discovered new exit (range 4) 8501 | -8/Materials | Identified exit to Factory 8925 | -8/Materials | Identified exit to Garrison 8925 | -8/Materials | Entered Garrison 9122 | -8/Garrison | Triggered checkpoint 9532 | -8/Garrison | Discovered new exit (range 11) 9559 | -8/Garrison | Installed Relay Interface Framework 9616 | -8/Garrison | Garrison Relay disabled 9638 | -8/Garrison | Triggered checkpoint 9717 | -8/Garrison | Entered Materials 10172 | -8/Materials | Build established: Hauler-Mutant 10697 | -8/Materials | Core integrity fell below 50% 10818 | -8/Materials | Discovered exit to Storage (range 15) 10960 | -8/Materials | Identified exit to Garrison 10960 | -8/Materials | Entered Garrison 11146 | -8/Garrison | Triggered checkpoint 11316 | -8/Garrison | Discovered exit to Factory (range 8) 11390 | -8/Garrison | Triggered checkpoint 11460 | -8/Garrison | Discovered exit to Factory (range 14) 11488 | -8/Garrison | Expanded RIF knowledge: Watcher Feeds 11542 | -8/Garrison | Triggered checkpoint 11587 | -8/Garrison | Garrison Relay disabled 11874 | -8/Garrison | Triggered checkpoint 11883 | -8/Garrison | Build established: Bothacker-Mutant 11915 | -8/Garrison | Garrison Relay disabled 12250 | -8/Garrison | Triggered checkpoint 12308 | -8/Garrison | Discovered exit to Factory (range 10) 12360 | -8/Garrison | Triggered checkpoint 12392 | -8/Garrison | Garrison Relay disabled 12469 | -8/Garrison | Entered Factory 12469 | -7/Factory | Evolved 2 slots: Utility x1, Weapon x1 12927 | -7/Factory | Core integrity fell below 50% 12941 | -7/Factory | Lost 8 parts (1p3n2u2w) 13362 | -7/Factory | Allied Derelicts emerged from ambush trap array 13435 | -7/Factory | Garrison activated, responded to threat 13448 | -7/Factory | Core integrity fell below 20% 13504 | -7/Factory | Lost 6 parts (3n3w) 13545 | -7/Factory | Destroyed by G-47 Trooper with Particle Gun Last Messages --------------- 13520_ Lgt. Treads crushed. 13520_ U-05 Engineer lays Concrete. 13520_ K-01 Serf collects debris. 13520_ U-05 Engineer builds a Wall. 13522_ U-05 Engineer lays Concrete. 13524_ U-05 Engineer builds a Door. 13525_ U-05 Engineer lays Concrete. 13528_ U-05 Engineer builds a Wall. 13529_ U-05 Engineer lays Concrete. 13534_ U-05 Engineer builds a Wall. 13534_ U-05 Engineer lays Concrete. 13538_ U-05 Engineer builds a Wall. 13539_ U-05 Engineer lays Concrete. 13541_ K-01 Serf collects debris. 13541_ U-05 Engineer lays Concrete. 13543_ The unstable cave ceiling collapses. 13543_ U-05 Engineer lays Concrete. 13544_ A-02 Transporter destroyed. 13544_ U-05 Engineer lays Concrete. 13545_ U-05 Engineer builds a Wall. Map ----- +----------------------------------------------------+ | ?????????????????????????????????????????????????? | | ?????????????????????????????????????????????????? | | ?????????????????????????????????????????????????? | | ?????????????????????????????????????????????????? | | ?????????????????????????????????????????????????? | | ?????????????????????????????????????????????????? | | ?????????????????????????????????????????????????? | | ?????????????????????????????????????????????????? | | ?????????????????????????????????????????????????? | | ####?????????????????????????????????????????????? | | "" #?????????????????????????????????????????????? | | T" #?????????????????????????????????????????????? | | " #?????????????????????????????????????????????? | | #######???????????????????????? C?????????????? | | # ###########????????????? "????????????? | | #### ############## "????????????? | | ""???????????? | | ### !??????????? | | #?# ####### * ??????????? | | #?####### # %! ?????????? | | #???????# + % ?????????? | | ##???????# " " # u ?????????? | | ?????????# " " # u C ????????? | | ?????????# " " ## # % #?????????? | | ?????????# " " ## # % #?????????? | | ########?# " " # =# @ = #?????????? | | #?# " " # !+! % *%= #???????????? | | #?# " " # ###% * #???????????? | | "" """ #?# " " # #=# #???????????? | | "" """ #?# " " # # #??????????? | | "" """ #?# ## """# # % ### g [##??????????? | | #?######## """ # #?? [%[#??????????? | | "" """ #????????# R"### ##????[ #??????????? | | "" """ #????????# """### ##????? ???????????? | | "" """ #????????# "" #?# #??????????????????? | | #????????# #?# #??????????????????? | | #????????########?#= #??????????????????? | | #?????????????????#%! #??????????????????? | | ########??????????????????! #??????????????????? | | ?????????????????????????? #??????????????????? | | ?????????????????????????? #??????????????????? | | ?????????????????????????? #??????????????????? | | ?????????????????????????? #??????????????????? | | ?????????????????????????? ##"#??????????????????? | | ?????????????????????????? ??????????????????????? | | ?????????????????????????????????????????????????? | | ?????????????????????????????????????????????????? | | ?????????????????????????????????????????????????? | | ?????????????????????????????????????????????????? | | ?????????????????????????????????????????????????? | +----------------------------------------------------+ Best States ------------- Heat Dissipation 34 Energy Generation 14 Energy Capacity 280 Matter Stores 300 Matter Capacity 300 Sight Range 16 Robot Scan Range 16 Terrain Scan Range 16 Terrain Scan Density 85 Armor Coverage 150 Evasion (%) 40 Recoil Reduction 3 Offensive Hacking 20 Relay Coupler Types 25 Relay Coupler Value 1 Item Schematics ----------------- Adv. Sensor Array | -8/Materials | Scanalyzed Robot Schematics ------------------ None Fabricated ------------ Nothing Alien Tech Used ----------------- None Achievements -------------- Factory Defaults Infiltrator Challenges ------------ None Game ------ Seed CryofiberGodBoregun Manual? 0 Play Time 01:46:37 Cumulative 112.9 hours Start 2021.05.18 @ 13:58:07 End 2021.05.18 @ 18:00:31 Sessions 9 Manual Loads 0 Difficulty Rogue Special Mode None Game No. 73 Rogue 48 Adventurer 25 Explorer 0 Win Type - Total 0 Types 0/0/0/0/0/0/0/0/0 Lore% 39 Gallery% 39 Achievement% 35 Wizard Run 0 Options --------- ASCII 0 Keyboard 1 Movement Vi Keybinds 1 Fullscreen 2 Font 18/SmallcapsGlow Map View 76x50 Tactical HUD 1 Map Filters NONE Filters NONE Steam 1 RUN: eb465271-e1bb-435b-8a05-2e4b7194b1ca